Cogmind - Beta 9.4 @@@ ROGUE MODE // 2020.02.21 @ 22:12:51 Player: spruce (@macklemurr) Result: Destroyed by G-47 Trooper with Particle Gun Performance ------------- Evolutions (0) 0 Regions Visited (1) 200 Robots Destroyed (11) 55 Value Destroyed (251) 251 Prototype IDs (0) 0 Alien Tech Used (0) 0 Bonus (0) 0 TOTAL SCORE: 506 Bonus ------- None Cogmind --------- Core Integrity 0/250 Matter 289/300 Energy 92/100 System Corruption 4% Temperature Cool (9) Movement Core (350) Ox6 Location -10/Materials Parts ------- > --- POWER (1) -------- (None) > --- PROPULSION (2) --- (None) > --- UTILITY (2) ------ Small Storage Unit Large Storage Unit > --- WEAPON (2) ------- Small Laser > --- INVENTORY (12) --- Light Ion Engine Signal Interpreter Peak State ------------ > --- POWER ------------ Light Ion Engine > --- PROPULSION ------- Wheel Compact Wheel > --- UTILITY ---------- Small Storage Unit Large Storage Unit > --- WEAPON ----------- EM Pulse Gun Assault Rifle > --- INVENTORY -------- (None) [Rating: 7] Favorites ----------- Power Ion Engine Engine Ion Engine Propulsion Compact Wheel Wheel Compact Wheel Utility Small Storage Unit Storage Small Storage Unit Weapon Small Laser Energy Gun Small Laser Ballistic Gun Assault Rifle Build | -11 -10 ------- Run | Scr Mat Slots Evolved . | . . Power . | . . Propulsion . | . . Utility . | . . Weapon . | . . Parts Attached 11 | 6 5 Power 2 | 1 1 Engine 2 | 1 1 Core . | . . Reactor . | . . Propulsion 2 | 2 . Treads . | . . Leg . | . . Wheel 2 | 2 . Hover . | . . Flight . | . . Utility 2 | 1 1 Device . | . . Storage 2 | 1 1 Processor . | . . Hackware . | . . Protection . | . . Artifact . | . . Weapon 5 | 2 3 Energy Gun 3 | 1 2 Energy Cannon . | . . Ballistic Gun 2 | 1 1 Ballistic Cannon . | . . Launcher . | . . Special Weapon . | . . Impact Weapon . | . . Slashing Weapon . | . . Piercing Weapon . | . . Special Melee Weapon . | . . Unidentified Prototypes . | . . Parts Lost 8 | . 8 Power 2 | . 2 Propulsion 2 | . 2 Utility . | . . Weapon 4 | . 4 Highest Loss Streak 3 | . 3 Average Slot Usage (%) 84 | . 84 Engine 9 | . 9 Wheel 19 | . 19 Storage 27 | . 27 Energy Gun 13 | . 13 Ballistic Gun 13 | . 13 Naked Turns . | . . Heaviest Build 28 | 11 28 Greatest Support 26 | 26 26 Greatest Overweight (x) 1 | . 1 Average Overweight (x) . | . . Largest Inventory Capacity 12 | 6 12 Average Capacity 11 | 5 11 Most Carried 3 | . 3 Average Carried 1 | . 1 Final Capacity 12 | 6 12 Final Carried 2 | . 2 Class Distribution -------------------- 100% | Mutant Dominant Class ---------------- Mutant | -10/Materials Resources | -11 -10 ----------- Run | Scr Mat Matter Collected 353 | 253 100 Remotely . | . . Salvage Created 311 | . 311 Parts 23 | . 23 Haulers Intercepted . | . . Recyclers Shooed . | . . Parts Field Recycled . | . . Retrieved Matter . | . . Parts Self-Destructed . | . . Prevented . | . . Kills | -11 -10 ------- Run | Scr Mat Combat Hostiles Destroyed 9 | . 9 Guns 9 | . 9 Classes Destroyed 4 | . 4 Worker 1 | . 1 Watcher 1 | . 1 Swarmer 3 | . 3 Grunt 6 | . 6 Best Kill Streak 3 | . 3 Combat Bots Only 3 | . 3 Max Kills in Single Turn 1 | . 1 Gunslinging . | . . Exploded . | . . Melee . | . . Uniques/NPCs Destroyed . | . . Combat | -11 -10 -------- Run | Scr Mat Damage Taken 820 | . 820 Core 261 | . 261 Absorbed by Shields . | . . Core Remaining (%) 100 | 100 . Volleys Fired 49 | . 49 Largest 2 | . 2 Hottest 60 | . 60 Shots Fired 77 | . 77 Gun 77 | . 77 Cannon . | . . Launcher . | . . Special . | . . Kinetic 36 | . 36 Thermal 27 | . 27 Explosive . | . . Electromagnetic 14 | . 14 Robot Hit Streak 10 | . 10 Robot Miss Streak 5 | . 5 Penetration Max . | . . Secondary Targets 2 | . 2 Max Gunslinging Chain 1 | . 1 Shots Hit Robots 46 | . 46 Core Hits 20 | . 20 Critical Hits 1 | . 1 Critical Kills . | . . Critical Parts Destroyed 1 | . 1 Melee Attacks . | . . Impact . | . . Slashing . | . . Piercing . | . . Sneak Attacks . | . . Combat Hostiles . | . . Follow-up Attacks . | . . Damage Inflicted 617 | . 617 Guns 617 | . 617 Cannons . | . . Explosions . | . . Melee . | . . Ramming . | . . Kinetic 244 | . 244 Thermal 207 | . 207 Explosive . | . . Electromagnetic 166 | . 166 Impact . | . . Slashing . | . . Piercing . | . . Highest Corruption 4 | . 4 Average Corruption 3 | . 3 Corruption Purged . | . . Effects 3 | . 3 Matter Fused 1 | . 1 Data Loss (minor) 1 | . 1 Targeting Errors 1 | . 1 Overload Shots . | . . Overflow Damage . | . . Projectiles . | . . Explosions . | . . Melee . | . . Knockbacks . | . . Impact . | . . Kinetic . | . . Secondary . | . . Self-Inflicted Damage . | . . Shots . | . . Rammed . | . . Targets Rammed . | . . Kicked . | . . Crushed . | . . Highest Temperature 61 | . 61 Average Temperature 17 | . 17 Received Heat Transfer 321 | . 321 Siege Activations . | . . Robots Corrupted . | . . Combat Hostiles . | . . Parts Fried 1 | . 1 Impact Corruptions . | . . Robots Melted . | . . Combat Hostiles . | . . Parts Melted . | . . Heat Transferred 475 | . 475 Parts Sabotaged . | . . Parts Stolen . | . . Parts Stripped . | . . Power Chain Reactions . | . . Missiles Intercepted . | . . Alert | -11 -10 ------- Run | Scr Mat Peak Influence 263 | . 263 Average Influence 99 | . 112 Maximum Alert Level 1 | . 1 Low Security (%) 80 | 100 78 Level 1 19 | . 21 Level 2 . | . . Level 3 . | . . Level 4 . | . . Level 5 . | . . High Security . | . . Max Security . | . . Squads Dispatched 3 | . 3 Investigation 1 | . 1 Extermination . | . . Reinforcement 2 | . 2 Assault . | . . Garrison . | . . Intercept . | . . Construction Impeded . | . . Haulers Reinforced . | . . Stealth | -11 -10 --------- Run | Scr Mat Distress Signals 1 | . 1 Communications Jammed . | . . Distress Signals . | . . Times Spotted 14 | . 14 Peak Tracking Total 4 | . 4 Tactical Retreats . | . . Traps | -11 -10 ------- Run | Scr Mat Traps Triggered 3 | . 3 Indirectly . | . . Trap Hack Attempts . | . . Triggered . | . . Disarmed . | . . Reprogrammed . | . . Reused . | . . Traps Extracted . | . . Installed . | . . Triggered . | . . Machines | -11 -10 ---------- Run | Scr Mat Machines Disabled . | . . Max in Single Turn . | . . Machines Sabotaged . | . . Garrisons Compromised . | . . Overloaded Fab Kills . | . . Fab Network Shutdowns . | . . Hacking | -11 -10 --------- Run | Scr Mat Machines Accessed 3 | . 3 Terminals 2 | . 2 Fabricators . | . . Repair Stations . | . . Recycling Units 1 | . 1 Scanalyzers . | . . Garrison Access . | . . Total Hacks 4 | . 4 Successful 2 | . 2 Failed 2 | . 2 Catastrophic 1 | . 1 Database Lockouts . | . . Manual 4 | . 4 Terminals 3 | . 3 Fabricators . | . . Repair Stations . | . . Recycling Units 1 | . 1 Scanalyzers . | . . Garrison Access . | . . Terminal Hacks 1 | . 1 Zone Layout 1 | . 1 Fabricator Hacks . | . . Repair Station Hacks . | . . Recycling Unit Hacks . | . . Scanalyzer . | . . Garrison Access Hacks . | . . Unauthorized Hacks 3 | . 3 Terminals . | . . Fabricators . | . . Repair Stations . | . . Recycling Units 1 | . 1 Tunnel 1 | . 1 Scanalyzers . | . . Garrison Access . | . . Data Cores Recovered . | . . Used . | . . Hacking Detections 2 | . 2 Full Trace Events . | . . Feedback Events . | . . Feedback Blocked . | . . Robot Schematics Acquired . | . . Robots Built . | . . Matter . | . . Time . | . . Total Robot Build Rating . | . . Part Schematics Acquired . | . . Parts Built . | . . Matter . | . . Time . | . . Total Part Build Rating . | . . Parts Repaired . | . . Time . | . . Parts Recycled . | . . Recycled Matter . | . . Retrieved Matter . | . . Retrieved Components . | . . Parts Scanalyzed . | . . Part Schematics Acquired . | . . Parts Damaged . | . . Bothacking | -11 -10 ------------ Run | Scr Mat Used RIF Installer . | . . Robots Hacked . | . . Non-combat . | . . Combat . | . . Robot Hacks Applied . | . . Relay Couplers Released . | . . Robots Rewired . | . . Allies Hacked . | . . Hacks Repelled . | . . Allies | -11 -10 -------- Run | Scr Mat Total Allies . | . . Largest Group . | . . Highest-Rated Group . | . . Highest-Rated Ally . | . . Total Orders . | . . Ally Attacks . | . . Total Damage . | . . Kills . | . . Allies Corrupted . | . . Allies Melted . | . . Intel | -11 -10 ------- Run | Scr Mat Robot Analysis Total . | . . Derelict Logs Recovered . | . . Drone Launches . | . . Drone Recoveries . | . . Exploration | -11 -10 ------------- Run | Scr Mat Turns Passed 531 | 61 470 Spaces Moved 360 | 52 308 Core 13 | 13 . Treads . | . . Legs . | . . Wheels 347 | 39 308 Hover . | . . Flight . | . . Fastest Speed 50 | 50 90 Average Speed 101 | 80 104 Slowest Speed 110 | 90 110 Overloaded Moves . | . . Propulsion Burnouts . | . . Robots Hopped . | . . Cave-ins Triggered . | . . Exploration Rate (%) 23 | 3 44 Regions Visited 1 Branch Regions . Pre-discovered Areas 1 | . 1 Known Exits Taken . | . . Unknown Exits Taken 1 | 1 . Scrap Searched . | . . Spaces Dug . | . . Terrain Destroyed . | . . Melee . | . . Projectile . | . . AOE . | . . Actions | -11 -10 --------- Run | Scr Mat Total 448 | 68 380 Wait 26 | 11 15 Move 359 | 51 308 Hop . | . . Pick Up 3 | . 3 Fast Attach 10 | 6 4 Attach 1 | . 1 Detach . | . . Swap . | . . Drop . | . . Fire 49 | . 49 Melee . | . . Ram . | . . Kick . | . . Crush . | . . Escape Stasis . | . . Rewire . | . . Trap . | . . Miscellaneous . | . . Route ------- -11/Scrapyard -10/Materials (discovered 2 exits: [*Mat] / [*Min]) History --------- Turn | Location | Event 4 | -11/Scrapyard | Discovered new exit (range 16) 62 | -11/Scrapyard | Entered Materials 245 | -10/Materials | Discovered new exit (range 12) 292 | -10/Materials | Core integrity fell below 50% 305 | -10/Materials | Build established: Mutant 498 | -10/Materials | Discovered new exit (range 16) 518 | -10/Materials | Core integrity fell below 20% 532 | -10/Materials | Destroyed by G-47 Trooper with Particle Gun Last Messages --------------- 00416_ Ion Engine destroyed. 00420_ K-01 Serf collects debris. 00430_ G-34 Mercenary destroyed. 00436_ Acquired 6 matter. 00438_ Acquired Sml. Laser. 00449_ Triggered Shock Trap. 00449_ The floor emits a surge of raw power. 00449_ System corrupted (+2). 00450_ Triggered Shock Trap. 00450_ The floor emits a surge of raw power. 00450_ System corrupted (+2). 00467_ U-05 Engineer lays Concrete. 00498_ EXIT=FOUND 00502_ System corrupted: Matter fused (-8). 00509_ Com. Wheel destroyed. 00511_ Sml. Laser destroyed. 00521_ Lgt. Assault Rifle destroyed. 00526_ System corrupted: Component data lost. 00527_ System corrupted: Sml. Laser targeting data glitched. 00531_ U-05 Engineer destroyed. Map ----- +----------------------------------------------------+ | ??????# = # """ #???? | | ??????# =% %%! + #???? | | # """ ## ###### !% # #???? | | # ##+#######/#####! # "T" #???? | | # ## #%=########???? | | # ## ! #[ #?????#????? | | # ## # #?????#????? | | ######## """ """ """ # #?????#????? | | ???????# """ """ """ #= #?????#????? | | ???????# """ """ """ # #######????? | | ???????###############=% #????? | | ??????????# %* #????? | | ??????????# < #????? | | ??????????# % #????? | | ??????????# ##+##### #????? | | ??????????# # == # ##????? | | ??????????# # "" # ####### | | ??????????# # "T # # | | ??????????# # "" # + """ | | ????????### # # # """ | | ????????# %g#= ! # # """ | | ????????# * ######## " # | | ######### # ## """ ## | | # # # ## "" ###?#### | | # # # " ## """ # ????? | | # # @# """ ## "" # ????? | | # """ # # "" ## """ # ????? | | # """ # # """ ## """ # ????? | | # """ # # "" ## """ ##+##+#? | | # """ # # """ ## " #? | | # """ # # """ ## #? | | # # g# """ # #? | | # + + " # #? | | ????????# #?????# ####? | | ????????# ??????# ###+###+###?? | | ???????? ???#??# # #?? | | ???????? ???# ?#^ # === #?? | | ???????? ???# ?# # === ### | | ???????? < ???# ?# # === ## | | ??????? ??## ## # """ ## | | ????????? ??# # """ ## | | ??????????????# # / """ ## | | ??????????????# # ## | | ??????????????# "" ####+####### | | ????????####### Y" #??# #?????# | | ????????# "" #### ######## | | ????????# % % | | ????????# ##### | | ????????# #######+#####?# | | ????????##########??# #?# | +----------------------------------------------------+ Best States ------------- Heat Dissipation 25 Energy Generation 10 Energy Capacity 250 Matter Stores 300 Matter Capacity 300 Sight Range 16 Terrain Scan Density 10 Evasion (%) 50 Item Schematics ----------------- None Robot Schematics ------------------ None Fabricated ------------ Nothing Alien Tech Used ----------------- None Achievements -------------- None Challenges ------------ None Game ------ Seed IntegratedIonicProcessor Manual? 0 Play Time 00:07:01 Cumulative 184.7 hours Start 2020.02.21 @ 22:05:37 End 2020.02.21 @ 22:12:51 Sessions 1 Manual Loads 0 Difficulty Rogue Special Mode None Game No. 230 Rogue 230 Adventurer 0 Explorer 0 Win Type - Total 10 Types 2/3/0/1/1/3/0 Lore% 94 Gallery% 92 Achievement% 72 Wizard Run 0 Options --------- ASCII 0 Keyboard 0 Movement Numpad Keybinds 0 Fullscreen 1 Font 24/Smallcaps Map View 76x50 Tactical HUD 1 Map Filters NONE Filters NONE Steam 1 RUN: f56a865e-3249-42c1-8d78-244196e24f18